Cogmind - Beta 13 @@@ ROGUE MODE // 2024.03.21 @ 11:11:45 Player: darki Result: Destroyed by H-77 Assassin via exploding Antiparticle Suffusor Performance ------------- Evolutions (7) 3500 Regions Visited (19) 3800 Robots Destroyed (113) 565 Value Destroyed (2777) 2777 Prototype IDs (23) 460 Alien Tech Used (1) 200 Bonus (3891) 3891 TOTAL SCORE: 15193 Bonus ------- High Alert Combat Kills 24 Follower Combat Kills 2079 Network Hubs Disabled 400 Met Imprinter 300 Was Imprinted 300 Met Zhirov 300 Built Enhanced Grunts 300 A7 Reached Mainframe 300 Friendly Fire -112 Cogmind --------- Core Integrity 0/1300 Matter 270/300 Energy 100/100 System Corruption 3% Temperature Cool (0) Movement Core (50) Location -3/Testing Parts ------- > --- POWER (1) -------- (None) > --- PROPULSION (4) --- (None) > --- UTILITY (14) ----- Makeshift Hacking Suite Improved Hacking Suite > --- WEAPON (2) ------- (None) > --- INVENTORY (5) ---- Transdimensional Reconstructor Potential Cannon Improved Plasma Cutter Great Maul Peak State ------------ > --- POWER ------------ Light Antimatter Reactor > --- PROPULSION ------- Impulse Thruster Impulse Thruster Impulse Thruster Impulse Thruster > --- UTILITY ---------- Advanced Sensor Array Advanced Signal Interpreter Experimental EM Disruption Field Hacking Suite Makeshift Hacking Suite Improved Hacking Suite Improved Hacking Suite Improved Hacking Suite Improved Hacking Suite Improved Hacking Suite Improved System Shield Improved System Shield Advanced System Shield > --- WEAPON ----------- Dirty Datajack Phasing Sabre > --- INVENTORY -------- Structural Scanner Transdimensional Reconstructor Advanced Datajack Improved Plasma Cutter Great Maul [Rating: 117] Favorites ----------- Power Heavy Ion Engine Engine Heavy Ion Engine Power Core Neutrino Core Reactor Light Antimatter Reactor Propulsion Light Treads Treads Light Treads Leg Aluminum Leg Hover Unit Cooled Gravmag System Flight Unit Improved VTOL Module Utility Improved Hacking Suite Device Shield Generator Storage Large Storage Unit Processor Terrain Scan Processor Hackware Improved Hacking Suite Protection Light Armor Plating Weapon Assault Cannon Energy Gun Small Laser Energy Cannon Subdweller Beam Cannon Ballistic Gun Improved Assault Rifle Ballistic Cannon Assault Cannon Launcher Rocket Launcher Special Weapon Flamer Impact Weapon Great Maul Slashing Weapon Phasing Sabre Special Melee Weapon Dirty Datajack Build | -11 -10 -10 -9 -9 -7 -6 -6 -6 -6 -6 -6 -5 -5 -5 -5 -4 -4 -3 -3 ------- Run | Yrd Mat Min Mat Min Zio Pro Fac Ext Cet Arc Hub Fac Upp Upp Zhi Pro Fac Res Tes Slots Evolved 14 | . . . 2 . . . 6 . . . . 2 . . . . 2 2 . Power . | . . . . . . . . . . . . . . . . . . . . Propulsion 2 | . . . . . . . 2 . . . . . . . . . . . . Utility 12 | . . . 2 . . . 4 . . . . 2 . . . . 2 2 . Weapon . | . . . . . . . . . . . . . . . . . . . . Parts Attached 120 | . 10 . 16 12 2 4 12 13 1 5 5 13 . 2 7 . 10 5 3 Power 11 | . 1 . 4 . . . 1 1 . . 1 2 . . . . 1 . . Engine 8 | . 1 . 4 . . . 1 1 . . . 1 . . . . . . . Core 2 | . . . . . . . . . . . 1 1 . . . . . . . Reactor 1 | . . . . . . . . . . . . . . . . . 1 . . Propulsion 30 | . 2 . 4 6 . . 4 . . . . 4 . . 2 . 7 1 . Treads 4 | . 2 . . 2 . . . . . . . . . . . . . . . Leg 7 | . . . 3 4 . . . . . . . . . . . . . . . Wheel . | . . . . . . . . . . . . . . . . . . . . Hover 1 | . . . . . . . . . . . . . . . 1 . . . . Flight 18 | . . . 1 . . . 4 . . . . 4 . . 1 . 7 1 . Utility 53 | . 3 . 4 3 . 4 6 9 . 5 . 7 . . 5 . 2 4 1 Device 27 | . 1 . 3 2 . 4 2 5 . . . 2 . . 4 . . 4 . Storage 2 | . 1 . . . . . . . . . . . . . . . . . 1 Processor 9 | . . . 1 . . . 4 3 . . . 1 . . . . . . . Hackware 11 | . . . . . . . . . . 5 . 4 . . . . 2 . . Protection 4 | . 1 . . 1 . . . 1 . . . . . . 1 . . . . Artifact . | . . . . . . . . . . . . . . . . . . . . Weapon 26 | . 4 . 4 3 2 . 1 3 1 . 4 . . 2 . . . . 2 Energy Gun 1 | . 1 . . . . . . . . . . . . . . . . . . Energy Cannon 3 | . 2 . . . . . . . . . . . . . . . . . 1 Ballistic Gun 1 | . . . 1 . . . . . . . . . . . . . . . . Ballistic Cannon 9 | . 1 . 3 3 2 . . . . . . . . . . . . . . Launcher 3 | . . . . . . . . 2 . . 1 . . . . . . . . Special Weapon 1 | . . . . . . . . . . . 1 . . . . . . . . Impact Weapon 2 | . . . . . . . . . . . 1 . . . . . . . 1 Slashing Weapon 5 | . . . . . . . 1 1 1 . 1 . . 1 . . . . . Piercing Weapon . | . . . . . . . . . . . . . . . . . . . . Special Melee Weapon 1 | . . . . . . . . . . . . . . 1 . . . . . Unidentified Prototypes 13 | . . . 4 . . 2 . . . . . . . . 4 . . 1 2 Corrupted Parts 2 | . . . . . . . . . . . 2 . . . . . . . . System Corruption 13 | . . . . . . . . . . . 13 . . . . . . . . Parts Lost 35 | . . . 2 3 . . 3 2 . 3 3 3 . . . . 3 13 . Power 5 | . . . . . . . 1 . . . 1 1 . . . . 1 1 . Propulsion 9 | . . . 1 . . . . . . . 2 1 . . . . 2 3 . Utility 15 | . . . 1 1 . . 1 2 . 2 . 1 . . . . . 7 . Weapon 6 | . . . . 2 . . 1 . . 1 . . . . . . . 2 . Highest Loss Streak 7 | . . . 2 2 . . 3 2 . 3 3 2 . . . . 2 7 . To Critical Strikes 1 | . . . . . . . . 1 . . . . . . . . . . . Average Slot Usage (%) 93 | . 97 100 85 98 98 100 96 91 99 86 91 80 82 86 87 88 97 68 9 Engine 8 | . 14 14 11 11 11 11 5 5 6 6 4 1 . . . . . . . Treads 9 | . 11 28 1 5 22 22 . . . . . . . . . . . . . Leg 5 | . 16 . 20 16 . . . . . . . . . . . . . . . Flight 6 | . . . . . . . 26 26 26 26 25 11 11 11 11 11 19 11 . Device 16 | . 5 14 17 31 22 22 25 23 26 19 12 3 5 5 4 5 5 4 . Storage 7 | . 14 14 11 11 11 11 . . . . . . . . . . . . . Processor 4 | . . . 1 . . . 24 25 26 14 6 5 5 5 5 5 5 3 . Hackware 10 | . . . . . . . . . . 12 33 46 47 47 47 47 52 39 9 Protection 3 | . 5 . . . 11 11 . . . . . . . . . . . . . Energy Gun 1 | . 10 . . . . . . . . . . . . . . . . . . Energy Cannon 1 | . 5 14 2 . . . . . . . . . . . . . . . . Ballistic Cannon 12 | . 11 14 19 21 20 22 7 . . . . . . . . . . . . Slashing Weapon 1 | . . . . . . . 4 6 12 6 3 5 5 5 5 5 5 3 . Naked Turns . | . . . . . . . . . . . . . . . . . . . . Heaviest Build 47 | 12 37 37 42 44 44 47 19 20 20 20 15 21 19 20 20 20 20 20 4 Greatest Support 40 | 20 40 40 40 40 40 40 20 20 20 20 20 26 26 26 26 26 28 28 3 Greatest Overweight (x) 5 | . 1 . 2 2 1 1 . 5 . . . 1 . . 1 . . 1 1 Average Overweight (x) . | . . . 1 1 . 1 . . . . . . . . . . . . . Largest Inventory Capacity 15 | 8 15 15 15 15 15 15 15 5 5 5 5 5 5 5 5 5 5 5 5 Average Capacity 11 | 8 14 15 15 15 15 15 5 5 5 5 5 5 5 5 5 5 5 5 5 Most Carried 15 | 8 15 15 15 15 15 15 15 5 5 5 5 5 5 5 5 5 5 5 5 Average Carried 10 | 6 10 14 14 14 14 14 5 4 4 4 3 4 5 5 4 5 4 4 4 Final Capacity 15 | 8 15 15 15 15 15 15 5 5 5 5 5 5 5 5 5 5 5 5 5 Final Carried 15 | 8 15 15 15 14 15 15 4 5 4 3 5 5 5 5 5 5 4 4 5 Class Distribution -------------------- 59% | Mutant 14% | Wizard-Mutant 10% | Scavenger-Scout 5% | Scavenger-Mutant 4% | Wizard-Sprinter Dominant Class ---------------- Mutant | -10/Materials Mutant | -10/Mines Mutant | -9/Materials Scavenger-Mutant | -9/Mines Mutant | -7/Zion Mutant | -6/Proximity Caves Scavenger-Scout | -6/Factory Scavenger-Scout | -6/Extension Scavenger-Scout | -6/Cetus Scavenger-Scout | -6/Archives Wizard-Scout | -6/Hub_04(d) Wizard-Mutant | -5/Factory Wizard-Mutant | -5/Upper Caves Wizard-Mutant | -5/Upper Caves Wizard-Mutant | -5/Zhirov Wizard-Mutant | -4/Proximity Caves Wizard-Sprinter | -4/Factory Wizard-Mutant | -3/Research Hacker-Mutant | -3/Testing Resources | -11 -10 -10 -9 -9 -7 -6 -6 -6 -6 -6 -6 -5 -5 -5 -5 -4 -4 -3 -3 ----------- Run | Yrd Mat Min Mat Min Zio Pro Fac Ext Cet Arc Hub Fac Upp Upp Zhi Pro Fac Res Tes Matter Collected 2885 | 199 249 44 800 546 18 259 1 279 10 50 80 135 . 20 . 30 135 30 . Remotely 442 | . . . 67 375 . . . . . . . . . . . . . . . Salvage Created 3495 | 259 624 118 841 457 . 246 . 128 . 301 174 140 . . . . 109 98 . Parts 223 | 27 35 8 58 26 . 16 . 8 . 28 7 4 . . . . 4 2 . Haulers Intercepted 7 | . 1 . 3 . . . . . . . 1 1 . . . . . 1 . Recyclers Shooed 6 | 1 2 . 3 . . . . . . . . . . . . . . . . Parts Field Recycled . | . . . . . . . . . . . . . . . . . . . . Retrieved Matter . | . . . . . . . . . . . . . . . . . . . . Parts Self-Destructed 24 | . . . . . . 21 . . . . . . 1 . . 2 . . . Prevented 11 | . . . . . . 11 . . . . . . . . . . . . . Kills | -11 -10 -10 -9 -9 -7 -6 -6 -6 -6 -6 -6 -5 -5 -5 -5 -4 -4 -3 -3 ------- Run | Yrd Mat Min Mat Min Zio Pro Fac Ext Cet Arc Hub Fac Upp Upp Zhi Pro Fac Res Tes Combat Hostiles Destroyed 60 | . 13 5 18 14 . 7 . 1 . . . . . . . . 2 . . Melee 2 | . . . . . . . . 1 . . . . . . . . 1 . . Guns 3 | . 3 . . . . . . . . . . . . . . . . . . Cannons 54 | . 10 5 18 14 . 7 . . . . . . . . . . . . . AOE 1 | . . . . . . . . . . . . . . . . . 1 . . Classes Destroyed 15 | 3 5 . 4 2 . 1 . . . . . . . . . . . . . Worker 10 | 2 1 . 2 2 . . . . . . 2 . . . . . 1 . . Builder 10 | . 2 . 4 2 . . . 1 . . 1 . . . . . . . . Tunneler 9 | 9 . . . . . . . . . . . . . . . . . . . Hauler 7 | . 1 . 3 . . . . . . . 1 1 . . . . . 1 . Recycler 6 | 1 2 . 2 1 . . . . . . . . . . . . . . . Operator 11 | . . . 1 . . . . . . 9 1 . . . . . . . . Drone 1 | . . . . . . 1 . . . . . . . . . . . . . Watcher 4 | . . . 2 . . . . 1 . . . 1 . . . . . . . Swarmer 13 | . 3 3 4 . . 2 . . . . . . . . . . 1 . . Grunt 28 | . 8 2 8 7 . 3 . . . . . . . . . . . . . Brawler 2 | . . . 1 . . . . . . . . . . . . . 1 . . Duelist 1 | . . . . 1 . . . . . . . . . . . . . . . Sentry 9 | . . . 5 2 . 1 . 1 . . . . . . . . . . . Subdweller 2 | . 2 . . . . . . . . . . . . . . . . . . Assembled 4 | . . . . 4 . . . . . . . . . . . . . . . Best Kill Streak 8 | 4 3 3 6 4 . 3 . 2 . 8 4 1 . . . . 2 1 . Combat Bots Only 6 | . 3 3 6 3 . 3 . 1 . . . . . . . . 1 . . Max Kills in Single Turn 4 | 1 1 1 1 1 . 1 . 1 . 1 4 1 . . . . 1 1 . Gunslinging . | . . . . . . . . . . . . . . . . . . . . Exploded 1 | . . . . . . . . . . . . . . . . . 1 . . Melee 1 | . . . . . . . . 1 . . . . . . . . 1 . . Uniques/NPCs Destroyed . | . . . . . . . . . . . . . . . . . . . . Combat | -11 -10 -10 -9 -9 -7 -6 -6 -6 -6 -6 -6 -5 -5 -5 -5 -4 -4 -3 -3 -------- Run | Yrd Mat Min Mat Min Zio Pro Fac Ext Cet Arc Hub Fac Upp Upp Zhi Pro Fac Res Tes Hostile Shots Fired 454 | . 40 11 49 72 . 40 60 20 1 20 3 1 . 4 . . 22 91 20 Missed 163 | . 4 5 12 19 . 20 25 9 . 7 1 . . . . . 13 42 6 Damage Taken 5034 | . 427 65 436 618 . 208 427 158 24 268 182 115 . 92 . . 252 1177 585 Core 1899 | . 96 . 42 48 . 9 86 31 . 85 61 1 . 42 . . 67 746 585 Absorbed by Shields 571 | . . . 80 229 . 85 41 14 22 33 . . . . . . . 31 36 Redirected to Shielding 9 | . 9 . . . . . . . . . . . . . . . . . . Regen/Repaired (Parts) 19 | . 19 . . . . . . . . . . . . . . . . . . Core Remaining (%) 82 | 100 . 61 . . . 75 . . . . 69 . . . . 95 94 . . Volleys Fired 230 | 30 58 7 67 42 . 16 . 5 . . 5 . . . . . . . . Largest 2 | 2 2 2 2 2 . 2 . 1 . . 1 . . . . . . . . Hottest 124 | 80 115 115 124 88 . 88 . 33 . . 33 . . . . . . . . Shots Fired 443 | 60 113 14 134 80 . 32 . 5 . . 5 . . . . . . . . Gun 123 | 60 63 . . . . . . . . . . . . . . . . . . Cannon 310 | . 50 14 134 80 . 32 . . . . . . . . . . . . . Launcher 10 | . . . . . . . . 5 . . 5 . . . . . . . . Special . | . . . . . . . . . . . . . . . . . . . . Kinetic 288 | . 41 7 128 80 . 32 . . . . . . . . . . . . . Thermal 145 | 60 72 7 6 . . . . . . . . . . . . . . . . Explosive 10 | . . . . . . . . 5 . . 5 . . . . . . . . Electromagnetic . | . . . . . . . . . . . . . . . . . . . . Robot Hit Streak 11 | 6 11 11 9 11 . 5 . . . . . . . . . . . . . Robot Miss Streak 5 | 2 4 . 3 5 . 4 . . . . . . . . . . . . . Penetration Max . | . . . . . . . . . . . . . . . . . . . . Secondary Targets . | . . . . . . . . . . . . . . . . . . . . Shots Hit Robots 324 | 36 75 10 82 44 . 18 . 8 3 19 11 4 . . . . 8 6 . Core Hits 142 | 13 27 6 32 20 . 11 . 5 2 9 10 1 . . . . 4 2 . Critical Kills . | . . . . . . . . . . . . . . . . . . . . Critical Parts Destroyed . | . . . . . . . . . . . . . . . . . . . . Critical Strikes 18 | . 6 1 3 3 . 1 . . 1 1 . . . . . . 1 1 . Burn 5 | . 5 . . . . . . . . . . . . . . . . . . Blast 9 | . 1 1 3 3 . 1 . . . . . . . . . . . . . Sever 4 | . . . . . . . . . 1 1 . . . . . . 1 1 . Melee Attacks 130 | . . . . . . . 4 23 5 25 13 8 2 11 . . 24 14 1 Impact 1 | . . . . . . . . . . . . . . . . . . . 1 Slashing 127 | . . . . . . . 4 23 5 25 13 8 2 11 . . 22 14 . Piercing 2 | . . . . . . . . . . . . . . . . . 2 . . Sneak Attacks 20 | . . . . . . . . 2 . 10 4 2 . . . . 1 1 . Combat Hostiles 3 | . . . . . . . . 1 . . 2 . . . . . . . . Follow-up Attacks . | . . . . . . . . . . . . . . . . . . . . Damage Inflicted 9325 | 386 1121 245 2002 1085 . 557 . 419 148 1481 994 259 . . . . 312 316 . Guns 870 | 386 484 . . . . . . . . . . . . . . . . . . Cannons 4526 | . 637 245 2002 1085 . 557 . . . . . . . . . . . . . Explosions 283 | . . . . . . . . . . . 283 . . . . . . . . Melee 3646 | . . . . . . . . 419 148 1481 711 259 . . . . 312 316 . Ramming . | . . . . . . . . . . . . . . . . . . . . Kinetic 4089 | . 476 48 1923 1085 . 557 . . . . . . . . . . . . . Thermal 1307 | 386 645 197 79 . . . . . . . . . . . . . . . . Explosive 14 | . . . . . . . . . . . 14 . . . . . . . . Electromagnetic 269 | . . . . . . . . . . . 269 . . . . . . . . Impact . | . . . . . . . . . . . . . . . . . . . . Slashing 3643 | . . . . . . . . 419 148 1481 711 259 . . . . 309 316 . Piercing 3 | . . . . . . . . . . . . . . . . . 3 . . Highest Corruption 16 | . . . 5 5 5 1 . . . . 16 . . . . . . . . Average Corruption 3 | . . . 4 5 5 1 . . . . 12 . . . . . . . . Corruption Purged . | . . . . . . . . . . . . . . . . . . . . Corruption Blocked . | . . . . . . . . . . . . . . . . . . . . Effects 63 | . . . 19 32 4 6 . . . . 2 . . . . . . . . Message Errors 15 | . . . 6 7 . 1 . . . . 1 . . . . . . . . Matter Fused 15 | . . . 3 8 2 2 . . . . . . . . . . . . . Heat Flow Errors 7 | . . . 2 2 1 1 . . . . 1 . . . . . . . . Energy Discharges 8 | . . . 1 4 1 2 . . . . . . . . . . . . . Parts Rejected 1 | . . . . 1 . . . . . . . . . . . . . . . Parts Fused 1 | . . . . 1 . . . . . . . . . . . . . . . Data Loss (minor) 6 | . . . 2 4 . . . . . . . . . . . . . . . Data Loss (major) 5 | . . . 3 2 . . . . . . . . . . . . . . . Misfires 2 | . . . 1 1 . . . . . . . . . . . . . . . Alerts 1 | . . . 1 . . . . . . . . . . . . . . . . Weapon Failures 2 | . . . . 2 . . . . . . . . . . . . . . . Overload Shots . | . . . . . . . . . . . . . . . . . . . . Overflow Damage 557 | . 9 7 38 23 . 11 . 12 . 288 37 114 . . . . . 18 . Projectiles 88 | . 9 7 38 23 . 11 . . . . . . . . . . . . . Explosions 30 | . . . . . . . . . . . 30 . . . . . . . . Melee 439 | . . . . . . . . 12 . 288 7 114 . . . . . 18 . Knockbacks 29 | . 5 1 8 12 . 3 . . . . . . . . . . . . . Impact . | . . . . . . . . . . . . . . . . . . . . Kinetic 28 | . 5 1 7 12 . 3 . . . . . . . . . . . . . Secondary 1 | . . . 1 . . . . . . . . . . . . . . . . Self-Inflicted Damage 74 | . . . . . . . . . . . 74 . . . . . . . . Shots 1 | . . . . . . . . . . . 1 . . . . . . . . Rammed . | . . . . . . . . . . . . . . . . . . . . Targets Rammed . | . . . . . . . . . . . . . . . . . . . . Kicked . | . . . . . . . . . . . . . . . . . . . . Crushed . | . . . . . . . . . . . . . . . . . . . . Highest Temperature 497 | 126 497 96 326 231 163 250 4 . . . 168 . . . . . . . . Average Temperature 85 | 44 121 47 61 57 83 81 4 . . . 98 . . . . . . . . Received Heat Transfer 739 | . 171 15 84 183 . 52 85 30 4 49 . 12 . 18 . . 27 9 . Effects 6 | . 6 . . . . . . . . . . . . . . . . . . Shutdowns 3 | . 3 . . . . . . . . . . . . . . . . . . Damage (major) 3 | . 3 . . . . . . . . . . . . . . . . . . Siege Activations . | . . . . . . . . . . . . . . . . . . . . Robots Corrupted . | . . . . . . . . . . . . . . . . . . . . Combat Hostiles . | . . . . . . . . . . . . . . . . . . . . Parts Fried 4 | . . . . . . . . . . . 4 . . . . . . . . Impact Corruptions . | . . . . . . . . . . . . . . . . . . . . Robots Melted . | . . . . . . . . . . . . . . . . . . . . Combat Hostiles . | . . . . . . . . . . . . . . . . . . . . Parts Melted 8 | 1 4 . . 2 . . . 1 . . . . . . . . . . . Heat Transferred 3222 | 875 1977 259 111 . . . . . . . . . . . . . . . . Parts Sabotaged . | . . . . . . . . . . . . . . . . . . . . Parts Stolen . | . . . . . . . . . . . . . . . . . . . . Parts Stripped . | . . . . . . . . . . . . . . . . . . . . Power Chain Reactions . | . . . . . . . . . . . . . . . . . . . . Alert | -11 -10 -10 -9 -9 -7 -6 -6 -6 -6 -6 -6 -5 -5 -5 -5 -4 -4 -3 -3 ------- Run | Yrd Mat Min Mat Min Zio Pro Fac Ext Cet Arc Hub Fac Upp Upp Zhi Pro Fac Res Tes Peak Influence 819 | 60 162 171 468 303 . . 234 800 628 503 819 612 . . . . 131 98 64 Initial 401 | . 39 36 . 141 . . 150 104 364 251 175 401 . . . . . 63 49 Average 213 | 28 80 80 185 148 . . 185 410 494 437 285 515 . . . . 52 60 61 Maximum Alert Level 3 | . . . 2 1 . . 1 3 2 2 3 2 . . . . . . . Low Security (%) 65 | 100 100 100 55 85 . . 62 36 . . 29 . . . . . 100 100 100 Level 1 14 | . . . 42 14 . . 37 4 15 12 55 21 . . . . . . . Level 2 19 | . . . 2 . . . . 54 84 87 8 79 . . . . . . . Level 3 . | . . . . . . . . 3 . . 6 . . . . . . . . Level 4 . | . . . . . . . . . . . . . . . . . . . . Level 5 . | . . . . . . . . . . . . . . . . . . . . High Security . | . . . . . . . . . . . . . . . . . . . . Max Security . | . . . . . . . . . . . . . . . . . . . . Squads Dispatched 17 | . 3 . 2 . . . . 2 . . . 4 . . . . 1 4 1 Investigation 9 | . 1 . . . . . . 2 . . . 3 . . . . . 2 1 Extermination 1 | . . . . . . . . . . . . . . . . . 1 . . Reinforcement 7 | . 2 . 2 . . . . . . . . 1 . . . . . 2 . Assault . | . . . . . . . . . . . . . . . . . . . . Garrison . | . . . . . . . . . . . . . . . . . . . . Intercept . | . . . . . . . . . . . . . . . . . . . . Searches Triggered . | . . . . . . . . . . . . . . . . . . . . Construction Impeded 1 | . . . 1 . . . . . . . . . . . . . . . . Haulers Reinforced 1 | . . . . . . . . . . . . . . . . . . 1 . Active Scanning Responses . | . . . . . . . . . . . . . . . . . . . . Cargo Convoy Interrupts . | . . . . . . . . . . . . . . . . . . . . Stealth | -11 -10 -10 -9 -9 -7 -6 -6 -6 -6 -6 -6 -5 -5 -5 -5 -4 -4 -3 -3 --------- Run | Yrd Mat Min Mat Min Zio Pro Fac Ext Cet Arc Hub Fac Upp Upp Zhi Pro Fac Res Tes Distress Signals 8 | . 1 . 3 . . . . 2 1 . 1 . . . . . . . . Communications Jammed . | . . . . . . . . . . . . . . . . . . . . Distress Signals . | . . . . . . . . . . . . . . . . . . . . Times Spotted 170 | . 16 5 25 18 . 14 4 16 11 14 4 9 1 1 . . 9 21 2 Peak Tracking Total 11 | . 3 3 10 4 . 5 3 3 5 3 4 4 3 1 . . 5 11 2 Tactical Retreats 15 | . 1 . 1 4 . . 1 . . . . 2 1 1 . . 1 3 . Traps | -11 -10 -10 -9 -9 -7 -6 -6 -6 -6 -6 -6 -5 -5 -5 -5 -4 -4 -3 -3 ------- Run | Yrd Mat Min Mat Min Zio Pro Fac Ext Cet Arc Hub Fac Upp Upp Zhi Pro Fac Res Tes Traps Triggered 10 | . . . . . . . . 5 . . . . . . . . 1 3 1 Indirectly . | . . . . . . . . . . . . . . . . . . . . Trap Hack Attempts . | . . . . . . . . . . . . . . . . . . . . Triggered . | . . . . . . . . . . . . . . . . . . . . Disarmed . | . . . . . . . . . . . . . . . . . . . . Reprogrammed . | . . . . . . . . . . . . . . . . . . . . Reused . | . . . . . . . . . . . . . . . . . . . . Traps Extracted . | . . . . . . . . . . . . . . . . . . . . Installed . | . . . . . . . . . . . . . . . . . . . . Triggered 4 | . . . . . . 2 . . . . . . . . . 2 . . . Machines | -11 -10 -10 -9 -9 -7 -6 -6 -6 -6 -6 -6 -5 -5 -5 -5 -4 -4 -3 -3 ---------- Run | Yrd Mat Min Mat Min Zio Pro Fac Ext Cet Arc Hub Fac Upp Upp Zhi Pro Fac Res Tes Machines Disabled 29 | . 1 . 3 1 . . . 2 1 2 17 . 1 . . . . . 1 Max in Single Turn 7 | . 1 . 1 1 . . . 1 1 . 7 . 1 . . . . . 1 Network Hub 2 | . . . . . . . . . . . 2 . . . . . . . . Machines Repaired . | . . . . . . . . . . . . . . . . . . . . Machines Dismantled . | . . . . . . . . . . . . . . . . . . . . Machines Sabotaged . | . . . . . . . . . . . . . . . . . . . . Overloaded Fab Kills . | . . . . . . . . . . . . . . . . . . . . Hacking | -11 -10 -10 -9 -9 -7 -6 -6 -6 -6 -6 -6 -5 -5 -5 -5 -4 -4 -3 -3 --------- Run | Yrd Mat Min Mat Min Zio Pro Fac Ext Cet Arc Hub Fac Upp Upp Zhi Pro Fac Res Tes Machines Accessed 31 | . 3 . 2 . 1 . . 6 2 . . 3 1 1 9 . 1 2 . Terminals 13 | . 2 . 2 . . . . 6 2 . . . . 1 . . . . . Fabricators 6 | . . . . . . . . . . . . 3 . . . . 1 2 . Repair Stations 1 | . 1 . . . . . . . . . . . . . . . . . . Recycling Units . | . . . . . . . . . . . . . . . . . . . . Scanalyzers . | . . . . . . . . . . . . . . . . . . . . Garrison Access . | . . . . . . . . . . . . . . . . . . . . Total Hacks 96 | . 6 . 3 . 1 . . 9 2 . . 11 1 1 48 . 1 13 . Successful 82 | . 3 . 1 . 1 . . 4 1 . . 9 1 1 48 . 1 12 . Failed 14 | . 3 . 2 . . . . 5 1 . . 2 . . . . . 1 . Catastrophic 4 | . . . . . . . . 3 1 . . . . . . . . . . Database Lockouts . | . . . . . . . . . . . . . . . . . . . . Manual 77 | . 4 . . . . . . 18 6 4 16 15 . 2 . . 2 10 . Terminals 19 | . 4 . 3 . . . . 9 2 . . . . 1 . . . . . Fabricators 25 | . . . . . . . . . . . . 11 . . . . 1 13 . Repair Stations 2 | . 2 . . . . . . . . . . . . . . . . . . Recycling Units . | . . . . . . . . . . . . . . . . . . . . Scanalyzers . | . . . . . . . . . . . . . . . . . . . . Garrison Access . | . . . . . . . . . . . . . . . . . . . . Terminal Hacks 57 | . . . 1 . 1 . . 4 1 . . . 1 1 48 . . . . Record 39 | . . . . . . . . . 1 . . . 1 1 36 . . . . Part Schematic 5 | . . . . . 1 . . . . . . . . . 4 . . . . Robot Analysis 4 | . . . . . . . . . . . . . . . 4 . . . . Prototype ID Bank 4 | . . . . . . . . . . . . . . . 4 . . . . Open Door 4 | . . . . . . . . 4 . . . . . . . . . . . Branch Access Points 1 | . . . 1 . . . . . . . . . . . . . . . . Fabricator Hacks 13 | . . . . . . . . . . . . 7 . . . . 1 5 . Network Status 3 | . . . . . . . . . . . . 1 . . . . 1 1 . Load Schematic 5 | . . . . . . . . . . . . 3 . . . . . 2 . Build 5 | . . . . . . . . . . . . 3 . . . . . 2 . Repair Station Hacks 2 | . 2 . . . . . . . . . . . . . . . . . . Scan Component 1 | . 1 . . . . . . . . . . . . . . . . . . Repair 1 | . 1 . . . . . . . . . . . . . . . . . . Recycling Unit Hacks . | . . . . . . . . . . . . . . . . . . . . Scanalyzer . | . . . . . . . . . . . . . . . . . . . . Garrison Access Hacks . | . . . . . . . . . . . . . . . . . . . . Unauthorized Hacks 10 | . 1 . . . . . . . . . . 2 . . . . . 7 . Terminals 1 | . 1 . . . . . . . . . . . . . . . . . . Botnet 1 | . 1 . . . . . . . . . . . . . . . . . . Fabricators 9 | . . . . . . . . . . . . 2 . . . . . 7 . Report 1 | . . . . . . . . . . . . . . . . . . 1 . Prioritize 3 | . . . . . . . . . . . . 1 . . . . . 2 . Liberate 1 | . . . . . . . . . . . . . . . . . . 1 . Fabnet 3 | . . . . . . . . . . . . 1 . . . . . 2 . Haulers 1 | . . . . . . . . . . . . . . . . . . 1 . Repair Stations . | . . . . . . . . . . . . . . . . . . . . Recycling Units . | . . . . . . . . . . . . . . . . . . . . Scanalyzers . | . . . . . . . . . . . . . . . . . . . . Garrison Access . | . . . . . . . . . . . . . . . . . . . . Data Cores Recovered 1 | . . . 1 . . . . . . . . . . . . . . . . Used . | . . . . . . . . . . . . . . . . . . . . Hacking Detections 15 | . 1 . 2 . . . . 5 1 . . 3 . 1 . . . 2 . Full Trace Events 7 | . . . . . . . . 2 . . . 3 . . . . . 2 . Feedback Events . | . . . . . . . . . . . . . . . . . . . . Feedback Blocked . | . . . . . . . . . . . . . . . . . . . . Robot Schematics Acquired 7 | . . . . . 3 . . 4 . . . . . . . . . . . Robots Built 4 | . . . . . . . . . . . . 4 . . . . . . . Authchips . | . . . . . . . . . . . . . . . . . . . . Time 80 | . . . . . . . . . . . . 80 . . . . . . . Total Robot Build Rating 15 | . . . . . . . . . . . . 15 . . . . . . . Part Schematics Acquired 36 | . . . . . 16 . . 16 . . . . . . 4 . . . . Parts Built 3 | . . . . . . . . . . . . 1 . . . . . 2 . Authchips . | . . . . . . . . . . . . . . . . . . . . Time 157 | . . . . . . . . . . . . 95 . . . . . 62 . Total Part Build Rating 19 | . . . . . . . . . . . . 5 . . . . . 14 . Parts Repaired 1 | . 1 . . . . . . . . . . . . . . . . . . Time 44 | . 44 . . . . . . . . . . . . . . . . . . Parts Recycled . | . . . . . . . . . . . . . . . . . . . . Recycled Matter . | . . . . . . . . . . . . . . . . . . . . Retrieved Matter . | . . . . . . . . . . . . . . . . . . . . Retrieved Components . | . . . . . . . . . . . . . . . . . . . . Parts Scanalyzed . | . . . . . . . . . . . . . . . . . . . . Part Schematics Acquired . | . . . . . . . . . . . . . . . . . . . . Parts Damaged . | . . . . . . . . . . . . . . . . . . . . Bothacking | -11 -10 -10 -9 -9 -7 -6 -6 -6 -6 -6 -6 -5 -5 -5 -5 -4 -4 -3 -3 ------------ Run | Yrd Mat Min Mat Min Zio Pro Fac Ext Cet Arc Hub Fac Upp Upp Zhi Pro Fac Res Tes Used RIF Installer . | . . . . . . . . . . . . . . . . . . . . Robots Hacked 1 | . . . . . . . . . . . . . . . . . 1 . . Non-combat . | . . . . . . . . . . . . . . . . . . . . Combat 1 | . . . . . . . . . . . . . . . . . 1 . . Robot Hacks Applied . | . . . . . . . . . . . . . . . . . . . . Relay Couplers Released . | . . . . . . . . . . . . . . . . . . . . Fabnet Peak Effective % 3 | . . . . . . . . . . . . . . . . 3 3 1 1 Autooverrided 1 | . . . . . . . . . . . . . . . . . 1 . . Robots Rewired 5 | . . . . . . . . 5 . . . . . . . . . . . Allies Hacked . | . . . . . . . . . . . . . . . . . . . . Hacks Repelled . | . . . . . . . . . . . . . . . . . . . . Allies | -11 -10 -10 -9 -9 -7 -6 -6 -6 -6 -6 -6 -5 -5 -5 -5 -4 -4 -3 -3 -------- Run | Yrd Mat Min Mat Min Zio Pro Fac Ext Cet Arc Hub Fac Upp Upp Zhi Pro Fac Res Tes Total Allies 44 | . . . . 3 4 . . 18 5 . 4 7 . . . . 1 2 . Largest Group 13 | . . . . 3 4 4 . 13 12 10 12 7 4 . . . 1 2 . Highest-Rated Group 825 | . . . . 40 156 156 . 676 825 825 739 350 118 . . . 49 206 . Highest-Rated Ally 159 | . . . . 16 41 41 . 159 159 159 96 96 30 . . . 49 103 . Zionite Dispatches 7 | . . . . . . . . 3 . . 1 2 . . . . . 1 . Heavy 3 | . . . . . . . . 1 . . . 1 . . . . . 1 . Recon 1 | . . . . . . . . 1 . . . . . . . . . . . Fire 1 | . . . . . . . . . . . 1 . . . . . . . . Demo 1 | . . . . . . . . 1 . . . . . . . . . . . Hacking Resupply 1 | . . . . . . . . . . . . 1 . . . . . . . Total Orders 4 | . . . . . . . . 1 . . 2 1 . . . . . . . STAY 1 | . . . . . . . . . . . 1 . . . . . . . . FOLLOW 1 | . . . . . . . . . . . 1 . . . . . . . . DROP 1 | . . . . . . . . . . . . 1 . . . . . . . EXPLORE 1 | . . . . . . . . 1 . . . . . . . . . . . Ally Attacks 363 | . . . . 15 . 28 . 101 58 31 48 37 6 . . . . 39 . Total Damage 11929 | . . . . 143 . 985 . 3145 1957 933 2450 1111 137 . . . . 1068 . Kills 68 | . . . . . . 8 . 23 9 3 14 7 1 . . . . 3 . Allies Corrupted 4 | . . . . . . . . . . . 4 . . . . . . . . Allies Melted 2 | . . . . 1 . . . . . . . . 1 . . . . . . Intel | -11 -10 -10 -9 -9 -7 -6 -6 -6 -6 -6 -6 -5 -5 -5 -5 -4 -4 -3 -3 ------- Run | Yrd Mat Min Mat Min Zio Pro Fac Ext Cet Arc Hub Fac Upp Upp Zhi Pro Fac Res Tes Robot Analysis Total 4 | . . . . . . . . . . . . . . . 4 . . . . Derelict Logs Recovered 7 | . . 1 . 1 1 2 . . . . . . . 1 . 1 . . . Drone Launches 4 | . . . . . . . . 2 . . . . . . . . . 2 . Drone Recoveries 1 | . . . . . . . . 1 . . . . . . . . . . . Zionite Intel Received 6 | . . . . . . . . 2 . . 3 1 . . . . . . . Branch Access 1 | . . . . . . . . . . . . 1 . . . . . . . Guard Positions 1 | . . . . . . . . . . . 1 . . . . . . . . Component Schematics 1 | . . . . . . . . 1 . . . . . . . . . . . Unaware Schematics 1 | . . . . . . . . 1 . . . . . . . . . . . Trap Installations 1 | . . . . . . . . . . . 1 . . . . . . . . Depthwide Sectors/0 1 | . . . . . . . . . . . 1 . . . . . . . . Exploration | -11 -10 -10 -9 -9 -7 -6 -6 -6 -6 -6 -6 -5 -5 -5 -5 -4 -4 -3 -3 ------------- Run | Yrd Mat Min Mat Min Zio Pro Fac Ext Cet Arc Hub Fac Upp Upp Zhi Pro Fac Res Tes Turns Passed 10583 | 234 1104 469 991 996 2218 827 156 889 229 177 285 500 164 271 86 368 352 227 40 Spaces Moved 8591 | 61 459 279 353 326 955 316 329 1122 320 327 556 627 399 558 175 338 679 373 39 Core 99 | . . . . . . . . 8 . . . . . . . . . 52 39 Treads 1872 | . 221 279 15 86 955 316 . . . . . . . . . . . . . Legs 877 | 61 238 . 338 240 . . . . . . . . . . . . . . . Wheels . | . . . . . . . . . . . . . . . . . . . . Hover 1 | . . . . . . . . . . . . . . . 1 . . . . Flight 5742 | . . . . . . . 329 1114 320 327 556 627 399 558 174 338 679 321 . Fastest Speed 26 | 120 120 160 160 160 160 240 26 26 26 26 26 29 37 37 37 37 31 31 50 Average Speed 89 | 120 172 160 194 253 231 240 26 28 26 26 26 35 37 37 37 37 31 38 51 Slowest Speed 320 | 120 190 160 260 320 240 240 32 300 26 26 32 105 37 37 120 37 40 117 100 Overloaded Moves . | . . . . . . . . . . . . . . . . . . . . Propulsion Burnouts . | . . . . . . . . . . . . . . . . . . . . Robots Hopped 13 | . . . . . . . 3 7 . . 1 2 . . . . . . . Cave-ins Triggered . | . . . . . . . . . . . . . . . . . . . . Exploration Rate (%) 48 | 3 56 72 30 77 89 56 12 70 80 96 31 13 62 74 62 59 9 12 11 Regions Visited 19 Branch Regions 13 Pre-discovered Areas 16 | . . 1 . . 2 . . . . . 10 . . . 3 . . . . Known Exits Taken 13 | . . . 1 . . . 1 1 1 1 1 1 1 1 1 1 1 1 . Unknown Exits Taken 6 | 1 1 1 . 1 1 1 . . . . . . . . . . . . . Scrap Searched 10 | . . 1 . 1 1 2 . . . . . . 1 2 . 2 . . . Spaces Dug 121 | . . . . . . . 4 48 . . 37 1 1 11 . . 14 5 . Terrain Destroyed 364 | . 1 . 28 21 . . 4 58 . . 220 1 1 11 . . 14 5 . Melee 40 | . . . . . . . 4 3 . . 1 1 1 11 . . 14 5 . Projectile 50 | . 1 . 28 21 . . . . . . . . . . . . . . . AOE 274 | . . . . . . . . 55 . . 219 . . . . . . . . Terrain Rammed . | . . . . . . . . . . . . . . . . . . . . Walls Destroyed . | . . . . . . . . . . . . . . . . . . . . Machines Disabled . | . . . . . . . . . . . . . . . . . . . . Actions | -11 -10 -10 -9 -9 -7 -6 -6 -6 -6 -6 -6 -5 -5 -5 -5 -4 -4 -3 -3 --------- Run | Yrd Mat Min Mat Min Zio Pro Fac Ext Cet Arc Hub Fac Upp Upp Zhi Pro Fac Res Tes Total 10869 | 161 657 288 530 417 967 354 391 1647 457 382 669 886 411 605 195 580 781 434 57 Wait 1475 | 69 110 1 65 23 . 15 39 332 132 16 87 230 11 34 . 243 62 6 . Move 8546 | 60 458 278 352 325 954 315 322 1107 319 326 553 622 398 557 174 337 678 372 39 Hop 13 | . . . . . . . 3 7 . . 1 2 . . . . . . . Pick Up 57 | 2 12 1 10 6 5 2 2 1 . 4 1 2 . . 3 . 3 2 1 Fast Attach 67 | . 4 . 11 3 2 . 1 10 . 3 3 10 . 1 8 . 6 3 2 Attach 37 | . 1 . 5 4 . 2 11 3 1 2 . 2 . . . . 3 2 1 Detach 14 | . 2 . 3 . . . 1 3 . . 2 2 . . . . . . 1 Swap 17 | . 5 . . 5 . 2 . . . . 2 1 . 1 . . 1 . . Drop 93 | . 7 1 17 9 6 2 8 6 . 6 2 7 . 1 10 . 4 4 3 Fire 230 | 30 58 7 67 42 . 16 . 5 . . 5 . . . . . . . . Melee 130 | . . . . . . . 4 23 5 25 13 8 2 11 . . 24 14 1 Ram . | . . . . . . . . . . . . . . . . . . . . Kick . | . . . . . . . . . . . . . . . . . . . . Crush . | . . . . . . . . . . . . . . . . . . . . Escape Stasis 130 | . . . . . . . . 90 . . . . . . . . . 31 9 Rewire 60 | . . . . . . . . 60 . . . . . . . . . . . Trap . | . . . . . . . . . . . . . . . . . . . . Miscellaneous . | . . . . . . . . . . . . . . . . . . . . Route ------- -11/Scrapyard -10/Materials (discovered 2 exits: [*Min x2]) -10/Mines -9/Materials (discovered 3 exits: Mat / *Min x2) -9/Mines (discovered 2 exits: *Mat / *Zio) -7/Zion -6/Proximity Caves -6/Factory (discovered 2 exits: [*Low] / *Ext) -6/Extension (discovered 2 exits: *Fac / *Cet) -6/Cetus -6/Archives (discovered 3 exits: *Fac / *Hub x2) -6/Hub_04(d) -5/Factory (discovered 3 exits: *Fac / *Upp x2) -5/Upper Caves -5/Upper Caves -5/Zhirov -4/Proximity Caves -4/Factory (discovered 2 exits: *Res / Upp) -3/Research (discovered 2 exits: Res / *Tes) -3/Testing History --------- Turn | Location | Event 1 | -11/Scrapyard | Discovered new exit (range 3) 235 | -11/Scrapyard | Entered Materials 302 | -10/Materials | Build established: Mutant 530 | -10/Materials | Discovered new exit (range 8) 800 | -10/Materials | Derelicts attacked the area 1023 | -10/Materials | Discovered new exit (range 8) 1276 | -10/Materials | Repaired Broken Sub. Beam Cannon 1339 | -10/Materials | Entered Mines 1444 | -10/Mines | Learned location of Storage (-7) 1507 | -10/Mines | Learned location of 1 exit from Materials 1644 | -10/Mines | Received a Rocket Launcher from a helpful Derelict 1784 | -10/Mines | Discovered new exit (range 12) 1808 | -10/Mines | Entered Materials 1808 | -9/Materials | Evolved 2 slots: Utility x2 1809 | -9/Materials | Identified exit to Materials 2282 | -9/Materials | Identified exit to Mines 2799 | -9/Materials | Entered Mines 2809 | -9/Mines | Met a Derelict bent on vengeance 2984 | -9/Mines | A weapon hastily lodged in a ceiling crevice suddenly fell to the ground 3339 | -9/Mines | Assisted by bots powering up and referring to "LRC-V3" 3409 | -9/Mines | Discovered exit to Materials (range 6) 3412 | -9/Mines | Build established: Scavenger-Mutant 3680 | -9/Mines | Assembled infested the area 3716 | -9/Mines | Learned Materials interactive machine intel 3732 | -9/Mines | A Derelict revealed a hidden shortcut to a safe place 3795 | -9/Mines | Entered Zion 3904 | -7/Zion | System corruption cleaned by Quarantine Array 3931 | -7/Zion | Build established: Mutant 4163 | -7/Zion | Found CR-A16's Pointy Stick 4207 | -7/Zion | Discovered new exit (range 16) 4896 | -7/Zion | Given the Hacking Drone Bay 4941 | -7/Zion | Found Prototype Device 5057 | -7/Zion | Given A8's code to call for help 5589 | -7/Zion | Imprinted 5592 | -7/Zion | Declared Zion's savior 5961 | -7/Zion | Found Prototype Device 6013 | -7/Zion | Entered Proximity Caves 6013 | -6/Proximity Caves | Accompanied by 4 allies 6131 | -6/Proximity Caves | Spotter reported a threat 6180 | -6/Proximity Caves | Learned Factory garrison access intel 6192 | -6/Proximity Caves | Identified Hacking Drone Bay 6194 | -6/Proximity Caves | Identified Mobile Refinery Mk. CCLXVII 6257 | -6/Proximity Caves | Learned 8 Factory zone layouts 6687 | -6/Proximity Caves | Attracted the attention of an 0b10 checkpoint 6804 | -6/Proximity Caves | Discovered new exit (range 15) 6840 | -6/Proximity Caves | Entered Factory 6840 | -6/Factory | Evolved 6 slots: Propulsion x2, Utility x4 6841 | -6/Factory | Identified exit to Extension 6842 | -6/Factory | Loaded intel: 4 garrison access locations 6974 | -6/Factory | Spotted B-75 Beast 6989 | -6/Factory | Discovered new exit (range 16) 6996 | -6/Factory | Entered Extension 7015 | -6/Extension | Zion Recon squad teleported in 7015 | -6/Extension | Lost 3 parts (1p1u1w) 7027 | -6/Extension | Zion Demo squad teleported in 7049 | -6/Extension | Rescued a captive Derelict 7050 | -6/Extension | Rescued a captive Derelict 7228 | -6/Extension | Rescued a captive Derelict 7229 | -6/Extension | Rescued a captive Derelict 7447 | -6/Extension | Zion Heavy squad teleported in 7455 | -6/Extension | Rescued A7 7526 | -6/Extension | Rescued a captive Derelict 7587 | -6/Extension | Retrieved Zion intel report: Unaware Schematics 7590 | -6/Extension | Retrieved Zion intel report: Component Schematics 7594 | -6/Extension | Lost 4 allies 7626 | -6/Extension | Discovered new exit (range 10) 7627 | -6/Extension | Discovered new exit (range 6) 7629 | -6/Extension | Identified exit to Cetus 7629 | -6/Extension | Identified exit to Factory 7697 | -6/Extension | Build established: Scavenger-Scout 7774 | -6/Extension | Rescued a captive Derelict 7779 | -6/Extension | Rescued a captive Derelict 7797 | -6/Extension | Enhanced Grunt warped into view, answering call for help 7800 | -6/Extension | Enhanced Grunt warped into view, answering call for help 7885 | -6/Extension | Entered Cetus 7885 | -6/Cetus | Accompanied by 12 allies (A7) 7889 | -6/Cetus | Spotted Cetus Guard 7890 | -6/Cetus | Acquired a Cetus Manufacturing Module code from A7 7891 | -6/Cetus | Spotted Cetus Guard 7904 | -6/Cetus | Spotted Cetus Guard 7904 | -6/Cetus | Spotted Cetus Guard 7910 | -6/Cetus | Allies destroyed Cetus Guard 7920 | -6/Cetus | Allies destroyed Cetus Guard 7922 | -6/Cetus | Allies destroyed Cetus Guard 7947 | -6/Cetus | Started Cetus Manufacturing Module 7961 | -6/Cetus | Lost 6 allies 7972 | -6/Cetus | Manufactured an Enhanced Grunt 7997 | -6/Cetus | Manufactured an Enhanced Grunt 7997 | -6/Cetus | Escorted A7 to Cetus Mainframe 8022 | -6/Cetus | Manufactured an Enhanced Grunt 8045 | -6/Cetus | Discovered new exit (range 15) 8047 | -6/Cetus | Manufactured an Enhanced Grunt 8049 | -6/Cetus | Identified exit to Archives 8072 | -6/Cetus | Manufactured an Enhanced Grunt 8114 | -6/Cetus | Entered Archives 8114 | -6/Archives | Accompanied by 10 allies (A7) 8119 | -6/Archives | Received a hacking code to weaken MAIN.C 8131 | -6/Archives | Discovered new exit (range 16) 8142 | -6/Archives | Discovered new exit (range 15) 8147 | -6/Archives | Unable to access archive contents 8147 | -6/Archives | Discovered exit to Factory (range 16) 8155 | -6/Archives | Unable to access archive contents 8167 | -6/Archives | Lost 3 parts (2u1w) 8255 | -6/Archives | Identified exit to Hub_04(d) 8291 | -6/Archives | Entered Hub_04(d) 8291 | -6/Hub_04(d) | Accompanied by 8 allies 8299 | -6/Hub_04(d) | Zion Fire squad teleported in 8315 | -6/Hub_04(d) | Retrieved Zion intel report: Guard Positions 8360 | -6/Hub_04(d) | Retrieved Zion intel report: Trap Installations 8366 | -6/Hub_04(d) | Discovered exit to Factory (range 7) 8387 | -6/Hub_04(d) | Retrieved Zion intel report: Depthwide Sectors/0 8527 | -6/Hub_04(d) | Network Hub disabled 8531 | -6/Hub_04(d) | System corruption reached 10% 8535 | -6/Hub_04(d) | Spotted Lightning 8535 | -6/Hub_04(d) | Spotted Lightning 8535 | -6/Hub_04(d) | Spotted Lightning 8553 | -6/Hub_04(d) | Allies destroyed Lightning 8558 | -6/Hub_04(d) | Network Hub disabled 8559 | -6/Hub_04(d) | Allies destroyed Lightning 8559 | -6/Hub_04(d) | Allies destroyed Lightning 8575 | -6/Hub_04(d) | Lost 4 allies 8576 | -6/Hub_04(d) | Entered Factory 8576 | -5/Factory | Accompanied by 5 allies 8576 | -5/Factory | Evolved 2 slots: Utility x2 8583 | -5/Factory | Lost 3 parts (1p2n) 8658 | -5/Factory | Zion Heavy squad teleported in 8673 | -5/Factory | Discovered new exit (range 14) 8678 | -5/Factory | Identified exit to Factory 8730 | -5/Factory | Discovered new exit (range 15) 8735 | -5/Factory | Identified exit to Upper Caves 8803 | -5/Factory | Fabricated Adv. Sensor Array (x1) 8885 | -5/Factory | Fabricated M-28 Smith (x1) 8900 | -5/Factory | Zion Hacking Resupply teleported in 8923 | -5/Factory | Retrieved Zion intel report: Branch Access 8953 | -5/Factory | Fabricated L-41 Fighter (x3) 8955 | -5/Factory | Build established: Wizard-Mutant 8981 | -5/Factory | Lost 4 allies 9076 | -5/Factory | Entered Upper Caves 9076 | -5/Upper Caves | Accompanied by 4 allies 9237 | -5/Upper Caves | Discovered new exit (range 6) 9239 | -5/Upper Caves | Identified exit to Upper Caves 9240 | -5/Upper Caves | Entered another Upper Caves area 9254 | -5/Upper Caves | Attracted the attention of an 0b10 checkpoint 9441 | -5/Upper Caves | Encountered a Warlord checkpoint 9473 | -5/Upper Caves | Discovered new exit (range 7) 9475 | -5/Upper Caves | Identified exit to Zhirov 9511 | -5/Upper Caves | Entered Zhirov 9511 | -5/Zhirov | Discovered new exit (range 3) 9518 | -5/Zhirov | Met Zhirov 9530 | -5/Zhirov | Learned location of Quarantine (-2) 9530 | -5/Zhirov | Learned location of Testing (-3) 9530 | -5/Zhirov | Learned location of Command (-1) 9534 | -5/Zhirov | Zhirov requested help retrieving the SGEMP Prototype 9541 | -5/Zhirov | Found Alien Artifact 9541 | -5/Zhirov | Identified Integrated Dissipator 9541 | -5/Zhirov | Installed Integrated Dissipator, increased core heat dissipation (+20) 9554 | -5/Zhirov | Found Alien Artifact 9597 | -5/Zhirov | Identified exit to Proximity Caves 9597 | -5/Zhirov | Entered Proximity Caves 9649 | -4/Proximity Caves | Learned location of 2 exits from Research 9686 | -4/Proximity Caves | Discovered exit to Factory (range 12) 9825 | -4/Proximity Caves | Received a Behemoth hack from an annoying Tinkerer 9965 | -4/Proximity Caves | Entered Factory 9965 | -4/Factory | Evolved 2 slots: Utility x2 9966 | -4/Factory | Identified exit to Upper Caves 10011 | -4/Factory | Discovered new exit (range 6) 10012 | -4/Factory | Identified exit to Research 10280 | -4/Factory | Local machine network offline 10317 | -4/Factory | Entered Research 10317 | -3/Research | Evolved 2 slots: Utility x2 10318 | -3/Research | Identified exit to Testing 10318 | -3/Research | Identified exit to Research 10354 | -3/Research | Fabricated Assault Drone Bay (x1) 10354 | -3/Research | Found Prototype Device 10354 | -3/Research | Identified Exp. EM Disruption Field 10357 | -3/Research | Found Exp. EM Disruption Field 10375 | -3/Research | Zion Heavy squad teleported in 10413 | -3/Research | Fabricated Assault Drone Bay (x1) 10452 | -3/Research | Lost 6 parts (1p1n3u1w) 10535 | -3/Research | Core integrity fell below 50% 10544 | -3/Research | Entered Testing 10553 | -3/Testing | Lost 7 parts (2n4u1w) 10556 | -3/Testing | Found Prototype Energy Cannon 10556 | -3/Testing | Identified Potential Cannon 10584 | -3/Testing | Destroyed by H-77 Assassin via exploding Antiparticle Suffusor Last Messages --------------- 10575_ Slug penetrates Wall. 10576_ Penetrated by Slug. 10576_ Field strength at 34. 10577_ Field strength at 28. 10578_ Field strength at 22. 10578_ Slug penetrates Wall. 10579_ Wall collapses. 10579_ Slug penetrates Wall. 10579_ Penetrated by Slug. 10579_ Slug penetrates Antiparticle Suffusor. 10579_ Field strength at 4. 10580_ Stasis field depleted. 10581_ Detecting system override signal. 10584_ Antiparticle Suffusor explodes. 10584_ O-32 Director destroyed. 10584_ Antiparticle Suffusor explodes. 10584_ Terminal disabled. 10584_ Antiparticle Suffusor explodes. 10584_ Terminal disabled. 10584_ Scanalyzer disabled. Map ----- +----------------------------------------------------+ | ??????????????????????????????????????? | | ??????????????????????????????????????? | | ???????????????????#######????????????? | | ???????????????????#""# ]#????????????? | | ???????????????????#!!"/"##???????????? | | ???????????????????#" !"#???????????? | | ???????????????????#"" "#???????????? | | ???????????????????#" "#???????????? | | ???????????????????# #???????????? | | ???????????????????####+####??????????? | | ???????????????????# #??????????? | | ???????????????????# #??????????? | | ???????????????????# #??????????? | | ???????????????###?# #??????????? | | ??????????????? # #### #??????????? | | ???????????#### #?## #??????????? | | ???????##### ; #;# ## #??????????? | | ???????? # ; # # +??????????? | | ????????# ; #??????????? | | ?????????; ; ; ; # ;??????????? | | ???????### ; #??????????? | | ???????#; # ?????????? | | ?????### ;#?????????? | | ?????# ; ;#######???? | | ??????#;" | | ???????# @ | | ???????# | | ??????#;" """ ? | | ?????# # " """ ### ? | | ??????#;; """ ????? | | ??????###; """??????? | | ???????# ; ; T """??????? | | ???????# ## ## # #; ??????? | | ???????##?##? "";##? = ??????? | | ?????????????# " ##?? ?????? | | ??????????????;##;##???# ?#######????? | | ??????????????#??#?????? ????????????? | | ???????????????????????? ????????????? | | ???????????????????????? ????????????? | | ???????????????????????? ????????????? | | ??????????????????????????????????????? | | ??????????????????????????????????????? | | ??????????????????????????????????????? | | ??????????????????????????????????????? | | ??????????????????????????????????????? | | ??????????????????????????????????????? | | ??????????????????????????????????????? | | ??????????????????????????????????????? | | ??????????????????????????????????????? | | ??????????????????????????????????????? | +----------------------------------------------------+ Best States ------------- Heat Dissipation 66 Energy Generation 21 Energy Capacity 315 Matter Stores 300 Matter Capacity 300 Sight Range 16 Robot Scan Range 16 Terrain Scan Range 16 Terrain Scan Density 285 Corruption Containment 8 Armor Coverage 150 Propulsion Shielding 33 Evasion (%) 64 Recoil Reduction 2 Offensive Hacking 81 Defensive Hacking 38 Item Schematics ----------------- Arc Thrower | -7/Zion | Free Lightning Gun | -7/Zion | Archive Adv. Melee Analysis Suite | -7/Zion | Archive EM Disruption Field | -7/Zion | Archive Flak Gun | -7/Zion | Archive Mak. Hover Unit | -7/Zion | Archive Imp. Cooling System | -7/Zion | Archive Imp. Dynamic Insulation System | -7/Zion | Archive Fission Core | -7/Zion | Archive Imp. EM Pulse Cannon | -7/Zion | Archive Spear | -7/Zion | Archive Imp. Medium Treads | -7/Zion | Archive Dynamic Insulation System | -7/Zion | Archive Imp. Core Shielding | -7/Zion | Archive Mak. Flight Unit | -7/Zion | Archive Field Propulsion Drive | -7/Zion | Archive Imp. Particle Charger | -6/Extension | Z-intel Adv. Sensor Array | -6/Extension | Z-intel Imp. Terrain Scan Processor | -6/Extension | Z-intel Field Laser | -6/Extension | Z-intel Remote Datajack | -6/Extension | Z-intel Armor Integrity Analyzer | -6/Extension | Z-intel Adv. ECM Suite | -6/Extension | Z-intel Thermal Shield | -6/Extension | Z-intel Huge Storage Unit | -6/Extension | Z-intel Imp. Terrain Scanner | -6/Extension | Z-intel Arm. Leg | -6/Extension | Z-intel Weapon Cycler | -6/Extension | Z-intel Energy Well | -6/Extension | Z-intel Power Maul | -6/Extension | Z-intel Imp. Target Analyzer | -6/Extension | Z-intel Hvy. Machine Gun | -6/Extension | Z-intel Assault Drone Bay | -5/Zhirov | Free Exp. Heat Sink | -5/Zhirov | Free Exp. Optical Array | -5/Zhirov | Free Imp. Arc Thrower | -5/Zhirov | Free Robot Schematics ------------------ X-57 Shotgunner | -7/Zion | Archive T-07 Excavator | -7/Zion | Archive B-48 Gladiator | -7/Zion | Archive M-28 Smith | -6/Extension | Z-intel L-41 Fighter | -6/Extension | Z-intel A-02 Transporter | -6/Extension | Z-intel E-15 Imp | -6/Extension | Z-intel Fabricated ------------ Adv. Sensor Array | x1 | -5/Factory M-28 Smith | x1 | -5/Factory L-41 Fighter | x3 | -5/Factory Assault Drone Bay | x1 | -3/Research Assault Drone Bay | x1 | -3/Research Alien Tech Used ----------------- Integrated Dissipator Achievements -------------- Main Advantage Project G-00 Challenges ------------ None Game ------ Seed IonDeliveryCharge Manual? 0 Play Time 02:24:52 Cumulative 171.2 hours Start 2024.03.18 @ 22:21:29 End 2024.03.21 @ 11:11:45 Sessions 7 Manual Loads 0 Difficulty Rogue Special Mode None Game No. 178 Rogue 178 Adventurer 0 Explorer 0 Win Type - Total 1 Types 1/0/0/0/0/0/0/0/0 Lore% 55 Gallery% 71 Achievement% 56 Wizard Run 0 Options --------- Layout 1 ASCII 0 Keyboard 0 Movement Numpad Keybinds 0 Fullscreen 1 Font 24/Smallcaps Map View 50x35 Zoom Use 0% Tactical HUD 1 Map Filters NONE Filters NONE Steam 1 RUN: e32cfdd5-4fbf-4c38-9f4c-2f5ef6d37d09